bitfinex-derivatives/quotes_SOLF0:USTF0_20250623
["timestamp","ask_amount","ask_price","bid_price","bid_amount"]
[1750655425968,42.95904383,133.53,133.52,5.30061438]
[1750655427069,5.93904383,133.53,133.52,12.78781438]
[1750655427569,128.26338755,133.54,133.52,12.78781438]
[1750655428775,14.38276163,133.53,133.49,4.43111256]
[1750655428968,44.5069,133.53,133.49,9.73172694]
[1750655429169,5.93485347,133.52,133.49,9.73172694]
[1750655429370,5.93485347,133.51,133.49,17.22012694]
[1750655429669,44.5069,133.53,133.49,17.22012694]
[1750655429871,5.93950076,133.52,133.49,17.22012694]
[1750655430079,44.5069,133.53,133.49,17.22012694]
[1750655430268,5.93950076,133.52,133.49,17.22012694]
[1750655430465,44.5069,133.53,133.49,17.22012694]
[1750655430665,5.93960822,133.52,133.49,17.22012694]
[1750655430869,44.5069,133.53,133.49,17.22012694]
[1750655431169,5.93960822,133.52,133.49,17.22012694]
[1750655431475,44.5069,133.53,133.49,17.22012694]
[1750655431677,5.93979723,133.52,133.49,17.22012694]
[1750655431868,44.5069,133.53,133.49,17.22012694]
[1750655432069,5.93979723,133.52,133.49,17.22012694]
[1750655432270,7.4872,133.52,133.49,11.91951256]
[1750655432471,7.4872,133.52,133.49,17.22012694]
[1750655433171,5.94041506,133.51,133.49,17.22012694]
[1750655433375,7.4872,133.52,133.49,17.22012694]
[1750655433574,5.94099215,133.51,133.49,17.22012694]
[1750655433779,7.4872,133.52,133.49,17.22012694]
[1750655434081,5.94097815,133.51,133.49,17.22012694]
[1750655434280,7.4872,133.52,133.49,17.22012694]
[1750655434472,5.94119624,133.51,133.49,17.22012694]
[1750655434666,7.4872,133.52,133.49,17.22012694]
[1750655434878,5.94134871,133.51,133.49,17.22012694]
[1750655435078,7.4872,133.52,133.49,17.22012694]
[1750655438390,44.5068,133.53,133.51,3.39094564]
[1750655438577,5.94300326,133.52,133.51,3.39094564]
[1750655441777,44.5068,133.53,133.51,3.39094564]
[1750655442875,7.4872,133.52,133.5,3.39094564]
[1750655443280,10.30835178,133.52,133.5,3.39094564]
[1750655443482,7.4872,133.52,133.5,3.39094564]
[1750655446188,7.4872,133.52,133.51,3.39094564]
[1750655446391,7.4872,133.52,133.5,3.39094564]
[1750655447386,7.4872,133.52,133.51,3.39094564]
[1750655447990,165.26338755,133.54,133.51,3.39094564]
[1750655448190,165.26338755,133.54,133.53,3.39094564]
[1750655448793,165.26338755,133.54,133.52,3.39094564]
[1750655449295,165.26338755,133.54,133.52,10.87814564]
[1750655449493,165.26338755,133.54,133.53,3.39094564]
[1750655453095,165.26338755,133.54,133.53,10.87754564]
[1750655453496,165.26338755,133.54,133.53,3.39094564]
[1750655453996,37.0,133.57,133.53,10.87724564]
[1750655454198,11.84627069,133.56,133.49,9.21181256]
[1750655454498,37.0,133.57,133.53,3.39094564]
[1750655454695,8.45384145,133.56,133.53,3.39094564]
[1750655454895,7.4852,133.56,133.53,3.39094564]
[1750655455195,183.53094564,133.57,133.53,3.39094564]
[1750655455399,8.45592542,133.56,133.53,3.39094564]
[1750655455599,8.45592542,133.55,133.53,3.39094564]
[1750655455896,7.4853,133.56,133.53,3.39094564]
[1750655456093,8.45598157,133.55,133.53,3.39094564]
[1750655456294,7.4853,133.56,133.53,3.39094564]
[1750655456595,8.45598157,133.55,133.53,3.39094564]
[1750655456791,7.4853,133.56,133.53,3.39094564]
[1750655456986,7.4856,133.55,133.53,3.39094564]
[1750655457396,183.53094564,133.57,133.52,7.4871]
[1750655457397,183.53094564,133.57,133.54,3.39094564]
[1750655457590,15.94487913,133.56,133.54,3.39094564]
[1750655457794,7.4853,133.56,133.54,3.39094564]
[1750655462793,180.14,133.57,133.54,10.87694564]
[1750655463100,8.46052265,133.56,133.53,3.39094564]
[1750655463293,10.87624564,133.56,133.53,3.39094564]
[1750655463495,8.46025561,133.55,133.53,3.39094564]
[1750655463695,10.87624564,133.56,133.53,3.39094564]
[1750655463897,7.4853,133.56,133.54,3.39094564]
[1750655465203,44.4845,133.57,133.54,3.39094564]
[1750655465502,8.45976503,133.56,133.54,3.39094564]
[1750655465800,37.0,133.57,133.54,10.87664564]
[1750655466001,37.0,133.57,133.55,3.39094564]
[1750655466002,8.46198056,133.56,133.55,3.39094564]
[1750655466204,37.0,133.57,133.55,3.39094564]
[1750655467203,44.4845,133.57,133.54,7.4857]
[1750655467501,37.0,133.57,133.55,3.39094564]
[1750655467901,37.0,133.57,133.56,3.39094564]
[1750655468105,39.82252209,133.57,133.56,3.39094564]
[1750655468297,37.0,133.57,133.56,10.87584564]
[1750655468701,37.0,133.57,133.56,3.39094564]
[1750655469408,37.0,133.57,133.55,10.87594564]
[1750655470905,139.11848192,133.61,133.56,3.39094564]
[1750655471099,45.45371114,133.6,133.58,3.39094564]
[1750655471403,8.45371114,133.59,133.57,3.39094564]
[1750655471698,40.39094564,133.6,133.57,3.39094564]
[1750655471903,44.483,133.6,133.57,3.39094564]
[1750655472104,45.47577435,133.6,133.59,3.39094564]
[1750655472403,37.0,133.6,133.59,3.39094564]
[1750655473304,650.27094564,133.62,133.59,3.39094564]
[1750655473506,650.27094564,133.62,133.58,3.39094564]
[1750655473707,646.88,133.62,133.59,3.39094564]
[1750655474004,793.37094564,133.62,133.59,3.39094564]
[1750655474305,800.85264564,133.62,133.59,3.39094564]
[1750655474500,657.75264564,133.62,133.59,3.39094564]
[1750655474701,654.3617,133.62,133.6,3.39094564]
[1750655475406,654.3617,133.62,133.59,3.39094564]
[1750655478109,3.39094564,133.61,133.57,3.39094564]
[1750655478301,183.45094564,133.6,133.57,3.39094564]
[1750655478912,190.93394564,133.6,133.57,3.39094564]
[1750655480209,187.543,133.6,133.56,7.4846]
[1750655482611,7.4833,133.59,133.55,12.77876295]
[1750655482798,7.4833,133.59,133.55,7.4853]
[1750655483004,185.35346295,133.6,133.54,42.29346295]
[1750655483203,7.4838,133.58,133.54,42.29346295]
[1750655483405,185.35346295,133.6,133.54,42.29346295]
[1750655483909,14.949,133.75,133.54,37.0]
[1750655484115,5.29219311,133.68,133.6,5.29219311]
[1750655484308,143.26,133.67,133.6,42.27219311]
[1750655484508,143.26,133.67,133.62,7.4811]
[1750655484812,143.26,133.67,133.62,5.29219311]
[1750655485115,143.26,133.67,133.62,7.4811]
[1750655485508,143.26,133.67,133.63,5.28854489]
[1750655486514,150.7388,133.67,133.63,5.28854489]
[1750655486816,36.96,133.66,133.62,12.76974489]
[1750655487312,50.70054748,133.66,133.59,7.4832]
[1750655487510,2.80930188,133.65,133.58,5.28854489]
[1750655487816,7.4814,133.63,133.58,5.28854489]
[1750655488009,36.96,133.63,133.58,5.28854489]
[1750655489416,7.4818,133.62,133.58,12.77224489]
[1750655489717,36.96,133.63,133.58,5.28854489]
[1750655490018,44.4414,133.63,133.59,7.4833]
[1750655490918,36.96,133.63,133.6,5.28854489]
[1750655493014,4.9719,133.64,133.62,5.28854489]
[1750655493516,36.96,133.66,133.62,5.28854489]
[1750655493715,36.96,133.66,133.64,5.28854489]
[1750655496122,23.3022236,133.65,133.64,5.28854489]
[1750655496309,36.96,133.66,133.64,5.28854489]
[1750655497221,792.1051,133.68,133.64,5.28854489]
[1750655497222,153.1235,133.68,133.64,12.76864489]
[1750655497921,9.8235,133.68,133.64,12.76864489]
[1750655499622,9.8235,133.68,133.65,5.28854489]
[1750655499819,7.4788,133.67,133.65,5.28854489]
[1750655500425,9.8237,133.68,133.65,5.28854489]
[1750655500814,2.3451,133.68,133.65,5.28854489]
[1750655501226,7.4789,133.67,133.65,5.28854489]
[1750655505029,2.3451,133.68,133.6,36.96]
[1750655505233,5.96155661,133.67,133.62,5.28854489]
[1750655505623,7.4804,133.65,133.62,5.28854489]
[1750655505823,43.16155661,133.66,133.56,7.80244489]
[1750655506025,11.24966992,133.65,133.58,5.28854489]
[1750655506329,7.4822,133.61,133.58,5.28854489]
[1750655508331,37.2,133.63,133.58,5.28854489]
[1750655508919,7.4825,133.61,133.58,5.28854489]
[1750655509828,37.2,133.63,133.58,5.28854489]
[1750655510032,7.4817,133.62,133.58,12.77194489]
[1750655511537,44.6813,133.63,133.58,12.77194489]
[1750655511832,44.6813,133.63,133.59,7.4831]
[1750655512422,37.2,133.63,133.6,12.77114489]
[1750655514429,37.2,133.63,133.56,45.00244489]
[1750655514430,37.2,133.63,133.58,5.28854489]
[1750655514830,7.4823,133.61,133.58,5.28854489]
[1750655515332,37.2,133.63,133.58,5.28854489]
[1750655515534,7.4819,133.62,133.58,12.77224489]
[1750655515726,37.2,133.63,133.58,5.28854489]
[1750655516539,7.4816,133.62,133.58,12.77204489]
[1750655516929,7.4821,133.61,133.58,7.4835]
[1750655517124,7.4821,133.61,133.58,12.77204489]
[1750655517526,37.2,133.63,133.58,12.77204489]
[1750655518136,7.4818,133.62,133.58,12.77204489]
[1750655522450,7.4821,133.61,133.58,12.77204489]
[1750655523349,37.2,133.63,133.6,5.28854489]
[1750655523743,37.2,133.63,133.6,12.77114489]
[1750655524335,37.2,133.63,133.61,7.4821]
[1750655524742,50.66213251,133.66,133.61,7.4821]
[1750655524951,13.44906616,133.65,133.61,7.4821]
[1750655525141,7.4803,133.65,133.61,7.4821]
[1750655525447,13.45004984,133.64,133.6,12.77104489]
[1750655525639,5.96889515,133.63,133.58,5.28854489]
[1750655525842,5.28854489,133.61,133.53,2.5053]
[1750655526043,5.28854489,133.61,133.54,5.28854489]
[1750655526044,43.1953106,133.6,133.54,5.28854489]
[1750655526246,44.84464489,133.6,133.54,5.28854489]
[1750655526545,39.5561,133.6,133.56,5.28854489]
[1750655527138,2.4731,133.62,133.58,5.28854489]
[1750655527446,39.6931,133.62,133.58,5.28854489]
[1750655527646,39.6931,133.62,133.59,7.4832]
[1750655527847,37.22,133.62,133.59,7.4832]
[1750655528243,37.22,133.62,133.6,12.77124489]
[1750655528950,37.22,133.62,133.6,7.4827]
[1750655531046,37.22,133.62,133.61,7.4821]
[1750655531447,2.3361,133.64,133.61,7.4821]
[1750655532147,9.8169,133.64,133.61,7.4821]
[1750655533453,2.3361,133.64,133.61,7.4821]
[1750655533648,2.3361,133.64,133.59,5.28854489]
[1750655533855,5.28854489,133.63,133.58,37.22]
[1750655534057,5.28854489,133.63,133.57,5.28854489]
[1750655534058,37.22,133.62,133.57,5.28854489]
[1750655535752,44.702,133.62,133.58,7.4838]
[1750655536155,7.483,133.6,133.55,12.77374489]
[1750655536354,37.34,133.59,133.55,5.28854489]
[1750655536760,37.34,133.59,133.56,7.4846]
[1750655538060,37.34,133.59,133.57,7.4843]
[1750655538358,37.34,133.59,133.55,5.28854489]
[1750655538759,37.34,133.59,133.56,7.4848]
[1750655545866,15.16084489,133.61,133.57,7.4841]
[1750655546062,15.16084489,133.61,133.55,5.28854489]
[1750655546063,52.50084489,133.61,133.55,5.28854489]
[1750655546365,39.7299,133.61,133.55,5.28854489]
[1750655546567,39.7299,133.61,133.58,7.4835]
[1750655546959,37.34,133.61,133.57,5.28854489]
[1750655547158,37.34,133.61,133.59,7.4829]
[1750655552269,39.6761,133.64,133.59,5.28854489]
[1750655552573,37.34,133.64,133.61,5.28854489]
[1750655552963,37.34,133.64,133.62,7.4814]
[1750655555068,37.34,133.64,133.63,7.481]
[1750655557072,37.34,133.64,133.61,5.28854489]
[1750655557268,37.34,133.64,133.6,5.28854489]
[1750655558072,5.99612739,133.63,133.6,5.28854489]
[1750655558273,37.34,133.64,133.6,5.28854489]
[1750655558473,5.99620585,133.63,133.61,7.4822]
[1750655558673,37.34,133.64,133.61,7.4822]
[1750655558861,5.99629686,133.63,133.61,7.4822]
[1750655559065,37.34,133.64,133.61,7.4822]
[1750655559268,5.99629686,133.63,133.61,7.4822]
[1750655559464,37.34,133.64,133.61,7.4822]
[1750655559775,5.99632492,133.63,133.61,7.4822]
[1750655559969,37.34,133.64,133.61,7.4822]
[1750655560169,5.99630358,133.63,133.61,7.4822]
[1750655560469,37.34,133.64,133.61,7.4822]
[1750655560668,5.99628955,133.63,133.61,7.4822]
[1750655560967,37.34,133.64,133.61,7.4822]
[1750655561168,5.99626922,133.63,133.61,7.4822]
[1750655561367,37.34,133.64,133.61,7.4822]
[1750655561573,5.99614328,133.63,133.61,7.4822]
[1750655561768,37.34,133.64,133.61,7.4822]
[1750655561968,5.99149596,133.63,133.61,7.4822]
[1750655562168,37.34,133.64,133.61,7.4822]
[1750655562872,37.34,133.64,133.62,7.4815]
[1750655563071,646.36,133.66,133.6,5.28854489]
[1750655563273,149.25088866,133.65,133.62,5.28854489]
[1750655563468,143.26,133.65,133.62,5.28854489]
[1750655563670,143.26,133.65,133.63,7.4807]
[1750655564670,691.1794,133.66,133.63,7.4807]
[1750655564872,143.26,133.65,133.63,7.4807]
[1750655567586,143.26,133.65,133.64,7.4805]
[1750655567984,37.34,133.66,133.63,5.28854489]
[1750655568193,180.58,133.66,133.63,5.28854489]
[1750655569087,37.34,133.66,133.63,5.28854489]
[1750655570885,37.34,133.66,133.65,7.4799]
[1750655571287,143.22,133.68,133.65,5.28854489]
[1750655571585,184.9858,133.69,133.66,7.479]
[1750655571884,5.98579122,133.68,133.65,5.28854489]
[1750655572090,184.9858,133.69,133.67,7.4788]
[1750655572280,5.99931725,133.68,133.67,7.4788]
[1750655572685,180.44,133.69,133.67,7.4788]
[1750655573388,180.44,133.69,133.68,7.4782]
[1750655573690,186.43816092,133.69,133.68,7.4782]
[1750655574287,186.41816092,133.69,133.68,7.4782]
[1750655574891,186.41816092,133.69,133.67,7.4786]
[1750655575191,180.42,133.69,133.67,7.4786]
[1750655575791,37.22,133.69,133.68,7.4782]
[1750655575985,43.1861025,133.69,133.68,7.4782]
[1750655578685,37.22,133.69,133.68,7.4782]
[1750655581088,39.5045,133.72,133.69,7.4777]
[1750655581289,149.1107561,133.71,133.69,7.4777]
[1750655581491,5.9707561,133.7,133.69,7.4777]
[1750655582897,143.12,133.71,133.69,7.4777]
[1750655584400,39.5045,133.72,133.7,7.4771]
[1750655584598,149.08732572,133.71,133.7,7.4771]
[1750655585301,5.96732572,133.71,133.7,7.4771]
[1750655585696,149.06732572,133.71,133.7,7.4771]
[1750655585897,143.1,133.71,133.7,7.4771]
[1750655586503,143.1,133.71,133.69,7.4774]
[1750655586999,143.08,133.71,133.69,7.4774]
[1750655587195,39.5045,133.72,133.69,7.4774]
[1750655587401,143.08,133.71,133.69,7.4774]
[1750655587804,143.08,133.71,133.7,7.4771]
[1750655587999,143.08,133.71,133.67,5.28854489]
[1750655588306,143.08,133.71,133.69,7.4773]
[1750655592513,143.08,133.71,133.68,7.478]
[1750655593220,143.08,133.71,133.68,7.4781]
[1750655593418,143.08,133.71,133.67,5.28854489]
[1750655593826,143.08,133.71,133.69,7.4773]
[1750655595406,143.08,133.71,133.7,7.4771]
[1750655595604,149.0644134,133.71,133.7,7.4771]
[1750655596020,143.08,133.71,133.7,7.4771]
[1750655596820,143.08,133.71,133.69,7.4774]
[1750655600818,143.08,133.71,133.7,7.4771]
[1750655601017,149.06583539,133.71,133.7,7.4771]
[1750655601326,143.08,133.71,133.7,7.4771]
[1750655602625,646.28,133.73,133.7,7.4771]
[1750655602926,148.98639987,133.72,133.7,7.4771]
[1750655603116,646.28,133.73,133.7,7.4771]
[1750655603316,148.98623902,133.72,133.7,7.4771]
[1750655603517,143.0,133.71,133.7,7.4771]
[1750655603817,653.7555,133.73,133.7,7.4771]
[1750655604017,148.98769355,133.72,133.7,7.4771]
[1750655604224,143.0,133.72,133.7,7.4771]
[1750655604431,653.7555,133.73,133.7,7.4771]
[1750655604613,148.9875283,133.72,133.7,7.4771]
[1750655604926,5.9875283,133.71,133.7,7.4771]
[1750655605428,143.0,133.71,133.7,7.4771]
[1750655605822,37.02,133.73,133.71,7.4761]
[1750655606123,148.9910298,133.72,133.71,7.4761]
[1750655606627,143.0,133.72,133.71,7.4761]
[1750655607922,2.4083,133.76,133.7,5.28854489]
[1750655608123,14.48322946,133.75,133.72,5.28854489]
[1750655608426,5.99373365,133.74,133.73,7.4752]
[1750655608624,4.8157,133.78,133.73,5.28854489]
[1750655608924,159.30441967,133.77,133.74,12.76314489]
[1750655609125,5.99688596,133.76,133.74,5.28854489]
[1750655609323,143.0,133.77,133.74,5.28854489]
[1750655609520,5.99428878,133.76,133.74,5.28854489]
[1750655609721,143.0,133.77,133.74,5.28854489]
[1750655609921,5.99534362,133.76,133.74,5.28854489]
[1750655610123,142.98,133.77,133.74,5.28854489]
[1750655610422,5.99272514,133.76,133.74,5.28854489]
[1750655610622,142.98,133.77,133.75,7.4743]
[1750655610834,5.99361589,133.76,133.75,7.4743]
[1750655611217,5.99361589,133.76,133.74,12.76324489]
[1750655611422,150.4533,133.77,133.73,5.28854489]
[1750655611628,5.99171294,133.76,133.73,5.28854489]
[1750655611936,142.98,133.76,133.74,7.4745]
[1750655614438,142.98,133.76,133.75,7.4743]
[1750655614736,148.98818994,133.76,133.75,7.4743]
[1750655614934,142.98,133.76,133.75,7.4743]
[1750655616126,142.98,133.76,133.73,5.28854489]
[1750655616127,142.98,133.76,133.74,7.4746]
[1750655621440,142.98,133.76,133.73,12.76374489]
[1750655622232,142.98,133.76,133.74,7.4748]
[1750655623238,142.98,133.76,133.75,7.4743]
[1750655625632,142.94,133.77,133.76,7.4735]
[1750655630739,114.7130708,133.79,133.77,7.4732]
[1750655630939,148.94572117,133.78,133.77,10.85145635]
[1750655631335,142.94,133.78,133.77,10.85145635]
[1750655631654,142.94,133.78,133.7,41.45111256]
[1750655631946,142.94,133.77,133.75,3.37825635]
[1750655632135,142.94,133.77,133.76,3.37825635]
[1750655632440,142.94,133.77,133.76,10.85205635]
[1750655634734,148.9462396,133.77,133.7,41.45111256]
[1750655634939,183.31825635,133.77,133.74,3.37825635]
[1750655635139,179.94,133.77,133.75,7.4739]
[1750655635338,183.31825635,133.77,133.75,7.4739]
[1750655635838,179.94,133.77,133.75,7.4739]
[1750655636235,183.31825635,133.77,133.75,7.4739]
[1750655637346,9.38688895,133.76,133.7,41.45111256]
[1750655637540,3.37825635,133.73,133.7,4.43111256]
[1750655637737,3.37825635,133.71,133.7,4.43111256]
[1750655637944,40.37825635,133.71,133.7,4.43111256]
[1750655638244,54.88202704,133.71,133.66,7.4793]
[1750655638439,3.37825635,133.69,133.66,3.37825635]
[1750655638640,142.94,133.68,133.66,3.37825635]
[1750655639347,142.94,133.68,133.67,10.85705635]
[1750655640244,2.3928,133.7,133.69,7.4777]
[1750655640449,37.0,133.71,133.69,7.4777]
[1750655640650,37.0,133.71,133.67,5.28390645]
[1750655641146,37.0,133.71,133.68,7.4781]
[1750655642447,37.0,133.71,133.69,7.4776]
[1750655644248,37.0,133.71,133.7,7.4771]
[1750655644549,43.01036216,133.71,133.7,7.4771]
[1750655645245,43.01052574,133.71,133.7,7.4771]
[1750655646339,43.01052574,133.71,133.67,5.28390645]
[1750655646538,37.0,133.71,133.67,5.28390645]
[1750655647641,44.4767,133.71,133.67,12.76270645]
[1750655647841,46.9861,133.71,133.67,7.4788]
[1750655649451,39.5094,133.71,133.68,7.4779]
[1750655650851,39.5094,133.71,133.69,7.4775]
[1750655651052,39.5094,133.71,133.67,5.28390645]
[1750655651648,39.5094,133.71,133.68,7.4779]
[1750655651854,39.5094,133.71,133.67,5.28390645]
[1750655652747,39.5094,133.71,133.69,7.4774]
[1750655657849,39.5094,133.71,133.68,7.4781]
[1750655658261,46.9861,133.71,133.68,7.4781]
[1750655658462,39.5094,133.71,133.66,5.28390645]
[1750655658760,44.3541,133.71,133.64,42.28390645]
[1750655658958,7.4775,133.7,133.66,7.479]
[1750655659153,44.3541,133.71,133.66,7.479]
[1750655659552,7.4777,133.69,133.65,7.4797]
[1750655659758,37.0,133.68,133.65,7.4797]
[1750655662058,44.4784,133.68,133.65,7.4797]
[1750655662263,44.4784,133.68,133.64,5.28390645]
[1750655662560,37.0,133.68,133.63,79.51921818]
[1750655662862,37.0,133.68,133.64,7.4802]
[1750655663563,7.4788,133.67,133.63,87.00001818]
[1750655663870,37.0,133.68,133.63,87.00001818]
[1750655663871,37.0,133.68,133.64,5.28390645]
[1750655664254,37.0,133.68,133.65,7.4796]
[1750655667261,44.4784,133.68,133.65,7.4796]
[1750655667565,42.28390645,133.68,133.64,7.4803]
[1750655668363,42.28390645,133.68,133.63,87.00011818]
[1750655669059,7.4794,133.66,133.63,79.51921818]
[1750655669257,37.0,133.65,133.6,5.28390645]
[1750655669558,42.28390645,133.64,133.59,7.483]
[1750655669864,37.0,133.63,133.59,7.483]
[1750655670065,44.4814,133.63,133.59,7.483]
[1750655670666,7.4817,133.62,133.58,7.4836]
[1750655671057,7.4817,133.62,133.57,5.28390645]
[1750655671364,7.4817,133.62,133.58,7.4836]
[1750655671563,7.4822,133.61,133.55,125.17856876]
[1750655671762,37.0,133.6,133.57,7.484]
[1750655672265,37.0,133.6,133.57,5.28390645]
[1750655672465,37.0,133.6,133.59,7.4833]
[1750655673269,37.0,133.6,133.58,7.4836]
[1750655673468,37.0,133.6,133.55,88.17856876]
[1750655673758,37.0,133.6,133.55,5.28390645]
[1750655674352,7.4833,133.59,133.55,12.76920645]
[1750655674557,37.0,133.6,133.55,5.28390645]
[1750655675560,37.0,133.6,133.53,5.28390645]
[1750655675761,7.4833,133.59,133.55,7.4851]
[1750655677762,7.4833,133.59,133.53,5.28390645]
[1750655677763,37.0,133.6,133.52,37.02]
[1750655677964,37.0,133.6,133.56,5.28390645]
[1750655678359,37.0,133.6,133.57,7.484]
[1750655680267,37.0,133.6,133.58,7.4838]
[1750655680867,37.0,133.6,133.59,7.4833]
[1750655681670,37.0,133.6,133.58,7.4836]
[1750655682676,37.0,133.6,133.59,7.4833]
[1750655682871,37.0,133.6,133.56,5.28390645]
[1750655683272,37.0,133.6,133.58,7.4835]
[1750655683877,37.0,133.6,133.56,5.28390645]
[1750655684265,37.0,133.6,133.57,7.484]
[1750655684872,7.4834,133.59,133.56,12.76870645]
[1750655685376,37.0,133.6,133.56,12.76870645]
[1750655685574,44.483,133.6,133.56,12.76870645]
[1750655685782,180.18,133.6,133.51,4.9049]
[1750655686078,7.4836,133.59,133.53,5.28390645]
[1750655686378,7.4836,133.59,133.55,7.4852]
[1750655686880,187.663,133.6,133.56,7.4849]
[1750655687380,180.18,133.6,133.55,5.28390645]
[1750655687575,180.18,133.6,133.57,7.4841]
[1750655691073,180.18,133.6,133.55,5.28390645]
[1750655691682,180.18,133.6,133.58,7.4833]
[1750655693676,180.18,133.6,133.59,7.4833]
[1750655695988,180.18,133.6,133.51,4.9049]
[1750655696281,185.46390645,133.6,133.54,5.28390645]
[1750655696785,7.4836,133.59,133.55,7.4855]
[1750655697286,7.4838,133.58,133.54,12.76970645]
[1750655698081,185.46390645,133.6,133.54,7.4858]
[1750655698785,7.4843,133.58,133.54,7.4858]
[1750655700389,7.4847,133.57,133.53,12.77030645]
[1750655700579,7.4847,133.57,133.53,5.28390645]
[1750655701686,7.4848,133.57,133.51,4.9049]
[1750655701883,7.0317,133.59,133.53,5.28390645]
[1750655702187,180.18,133.6,133.55,5.28390645]
[1750655702686,187.663,133.6,133.55,5.28390645]
[1750655703185,180.18,133.6,133.57,5.28390645]
[1750655703688,180.18,133.6,133.58,7.4834]
[1750655712294,180.18,133.6,133.54,5.28390645]
[1750655712590,5.94022701,133.59,133.54,5.28390645]
[1750655712794,180.18,133.6,133.54,5.28390645]
[1750655712995,5.9403252,133.59,133.54,5.28390645]
[1750655713198,185.46390645,133.6,133.54,5.28390645]
[1750655713494,14.38308447,133.59,133.52,42.44390645]
[1750655713694,19.66699092,133.58,133.52,42.44390645]
[1750655714004,43.10054958,133.57,133.52,42.44390645]
[1750655714189,37.16,133.57,133.54,7.4858]
[1750655714792,37.16,133.57,133.52,42.44390645]
[1750655715396,37.16,133.57,133.54,7.4858]
[1750655718697,37.16,133.57,133.55,7.4854]
[1750655721591,37.1,133.6,133.56,5.28390645]
[1750655721903,2.82042655,133.62,133.58,5.28390645]
[1750655722085,41.7535,133.63,133.6,7.4823]
[1750655722286,5.92661625,133.62,133.6,5.28390645]
[1750655722494,37.1,133.63,133.6,5.28390645]
[1750655723491,44.5596,133.66,133.6,5.28390645]
[1750655723698,44.5596,133.66,133.58,37.1]
[1750655723699,5.92322945,133.65,133.62,5.28390645]
[1750655723900,37.08,133.66,133.62,5.28390645]
[1750655724093,5.92284483,133.65,133.62,5.28390645]
[1750655724294,37.08,133.66,133.62,5.28390645]
[1750655724494,5.92565175,133.65,133.62,5.28390645]
[1750655724690,37.08,133.66,133.62,5.28390645]
[1750655724891,37.08,133.66,133.64,5.28390645]
[1750655725399,37.08,133.66,133.64,12.76400645]
[1750655726396,37.08,133.66,133.65,7.4799]
[1750655726901,37.08,133.66,133.64,12.76420645]
[1750655728302,37.08,133.66,133.64,5.28390645]
[1750655729010,37.08,133.66,133.64,12.76430645]
[1750655730307,37.08,133.66,133.65,7.4799]
[1750655731804,44.5579,133.69,133.66,7.4792]
[1750655732006,187.6779,133.69,133.66,7.4792]
[1750655732599,37.08,133.69,133.66,5.28390645]
[1750655734113,37.08,133.69,133.67,7.4785]
[1750655735614,37.08,133.69,133.65,5.28390645]
[1750655736199,39.4691,133.69,133.65,5.28390645]
[1750655736916,7.4786,133.68,133.64,7.4803]
[1750655737714,150.5588,133.67,133.63,12.76470645]
[1750655737909,143.08,133.67,133.61,42.36390645]
[1750655738212,44.68230645,133.66,133.61,5.28390645]
[1750655739007,7.4801,133.65,133.61,12.76570645]
[1750655739406,46.878,133.66,133.62,7.4813]
[1750655739908,39.3984,133.66,133.61,5.28390645]
[1750655740109,39.3984,133.66,133.63,7.4807]
[1750655741112,37.06,133.66,133.63,7.4807]
[1750655741312,37.06,133.66,133.63,12.76460645]
[1750655741617,37.06,133.66,133.63,5.28390645]
[1750655741908,143.08,133.67,133.63,5.28390645]
[1750655742510,143.08,133.67,133.65,7.4796]
[1750655742921,143.08,133.67,133.62,5.28390645]
[1750655744022,143.08,133.67,133.64,7.4802]
[1750655744318,143.08,133.67,133.62,5.28390645]
[1750655744715,143.08,133.67,133.66,7.4794]
[1750655745408,192.7038,133.69,133.66,7.4794]
[1750655746321,185.2259,133.69,133.66,7.4794]
[1750655747120,192.7036,133.69,133.66,7.4794]
[1750655748321,185.2259,133.69,133.66,7.4794]
[1750655750626,192.7036,133.69,133.66,7.4794]